[Event "Titled Tuesday Blitz October 31 Late 2023"]
[White "Bok, Benjamin"]
[Black "Andreikin, Dmitry"]
[WhiteFideId "1017063"]
[BlackFideId "4158814"]
[WhiteElo "2964"]
[BlackElo "3120"]
[Result "1/2-1/2"]
[Round "7"]
[TimeControl "180+1"]
[Date "2023.10.31"]
[WhiteClock "0:01:09"]
[BlackClock "0:02:02"]
[Board "2"]

1. d4 {[%clk 0:03:00]}  d5 {[%clk 0:03:00]} 2. c4 {[%clk 0:03:01]}  dxc4 {[%clk 0:03:00]} 3. Nf3 {[%clk 0:03:01]}  Nf6 {[%clk 0:02:59]} 4. e3 {[%clk 0:03:01]}  e6 {[%clk 0:02:58]} 5. Bxc4 {[%clk 0:03:01]}  c5 {[%clk 0:02:59]} 6. O-O {[%clk 0:03:01]}  a6 {[%clk 0:02:59]} 7. b3 {[%clk 0:03:02]}  Nbd7 {[%clk 0:02:58]} 8. Bb2 {[%clk 0:02:58]}  b5 {[%clk 0:02:58]} 9. Be2 {[%clk 0:02:58]}  Bb7 {[%clk 0:02:59]} 10. a4 {[%clk 0:02:58]}  bxa4 {[%clk 0:02:59]} 11. Rxa4 {[%clk 0:02:59]}  Be7 {[%clk 0:02:59]} 12. Nbd2 {[%clk 0:02:59]}  O-O {[%clk 0:02:58]} 13. Qa1 {[%clk 0:02:58]}  Qb6 {[%clk 0:02:32]} 14. h3 {[%clk 0:02:18]}  Rfb8 {[%clk 0:02:27]} 15. Rc1 {[%clk 0:02:10]}  h6 {[%clk 0:02:24]} 16. Qa2 {[%clk 0:01:17]}  Bd5 {[%clk 0:02:12]} 17. Rxa6 {[%clk 0:01:11]}  Rxa6 {[%clk 0:02:10]} 18. Qxa6 {[%clk 0:01:12]}  Qxa6 {[%clk 0:02:06]} 19. Bxa6 {[%clk 0:01:13]}  Bxb3 {[%clk 0:02:06]} 20. Nxb3 {[%clk 0:01:09]}  Rxb3 {[%clk 0:02:02]} 21. Ba1 {[%clk 0:01:09]} 1/2-1/2


[Site "https://www.chess.com"]

[Event "Titled Tuesday Blitz October 31 Late 2023"]
[White "Ibarra Jerez, Jose Carlos"]
[Black "Le, Quang Liem"]
[WhiteFideId "2226332"]
[BlackFideId "12401137"]
[WhiteElo "2920"]
[BlackElo "3047"]
[Result "1-0"]
[Round "7"]
[TimeControl "180+1"]
[Date "2023.10.31"]
[WhiteClock "0:00:08"]
[BlackClock "0:00:03"]
[Board "5"]

1. e4 {[%clk 0:03:00]}  c6 {[%clk 0:03:00]} 2. Nf3 {[%clk 0:03:00]}  d5 {[%clk 0:03:01]} 3. d3 {[%clk 0:03:00]}  dxe4 {[%clk 0:03:01]} 4. dxe4 {[%clk 0:02:59]}  Qxd1+ {[%clk 0:03:02]} 5. Kxd1 {[%clk 0:02:59]}  Nf6 {[%clk 0:03:03]} 6. Nbd2 {[%clk 0:02:59]}  g6 {[%clk 0:03:02]} 7. Ne5 {[%clk 0:02:57]}  Bg7 {[%clk 0:02:59]} 8. Nd3 {[%clk 0:02:56]}  O-O {[%clk 0:02:59]} 9. f3 {[%clk 0:02:57]}  Rd8 {[%clk 0:02:54]} 10. c3 {[%clk 0:02:56]}  Nh5 {[%clk 0:02:42]} 11. Kc2 {[%clk 0:02:55]}  f5 {[%clk 0:02:42]} 12. Nc5 {[%clk 0:02:49]}  b6 {[%clk 0:02:29]} 13. Bc4+ {[%clk 0:02:47]}  Kh8 {[%clk 0:02:29]} 14. Ne6 {[%clk 0:02:37]}  Bxe6 {[%clk 0:02:29]} 15. Bxe6 {[%clk 0:02:38]}  Na6 {[%clk 0:02:03]} 16. exf5 {[%clk 0:02:32]}  Nf4 {[%clk 0:01:56]} 17. Ne4 {[%clk 0:02:27]}  Nxe6 {[%clk 0:01:51]} 18. fxe6 {[%clk 0:02:26]}  Nc7 {[%clk 0:01:50]} 19. Ng5 {[%clk 0:02:19]}  Kg8 {[%clk 0:01:49]} 20. Re1 {[%clk 0:02:15]}  Bf6 {[%clk 0:01:35]} 21. Nf7 {[%clk 0:02:12]}  Rd5 {[%clk 0:01:34]} 22. Bf4 {[%clk 0:02:06]}  Nxe6 {[%clk 0:01:17]} 23. Nh6+ {[%clk 0:01:49]}  Kg7 {[%clk 0:01:16]} 24. Rxe6 {[%clk 0:01:46]}  g5 {[%clk 0:01:16]} 25. c4 {[%clk 0:01:30]}  Rd7 {[%clk 0:00:59]} 26. Be3 {[%clk 0:00:31]}  Kxh6 {[%clk 0:01:00]} 27. h4 {[%clk 0:00:31]}  Kg7 {[%clk 0:00:47]} 28. hxg5 {[%clk 0:00:27]}  Bd4 {[%clk 0:00:43]} 29. Re1 {[%clk 0:00:24]}  Bxe3 {[%clk 0:00:27]} 30. R1xe3 {[%clk 0:00:24]}  Kf7 {[%clk 0:00:27]} 31. Rxc6 {[%clk 0:00:20]}  Rad8 {[%clk 0:00:27]} 32. Re2 {[%clk 0:00:19]}  Rg8 {[%clk 0:00:23]} 33. f4 {[%clk 0:00:18]}  Rg6 {[%clk 0:00:20]} 34. Rxg6 {[%clk 0:00:17]}  hxg6 {[%clk 0:00:20]} 35. Kc3 {[%clk 0:00:15]}  Rd1 {[%clk 0:00:20]} 36. g3 {[%clk 0:00:14]}  Rf1 {[%clk 0:00:20]} 37. Re3 {[%clk 0:00:14]}  Ke8 {[%clk 0:00:20]} 38. Kb4 {[%clk 0:00:14]}  Rf2 {[%clk 0:00:19]} 39. Ka3 {[%clk 0:00:13]}  Kd7 {[%clk 0:00:19]} 40. b4 {[%clk 0:00:13]}  Kd6 {[%clk 0:00:18]} 41. Kb3 {[%clk 0:00:14]}  a6 {[%clk 0:00:17]} 42. a3 {[%clk 0:00:14]}  e6 {[%clk 0:00:18]} 43. Rd3+ {[%clk 0:00:14]}  Kc6 {[%clk 0:00:18]} 44. Re3 {[%clk 0:00:14]}  Kd6 {[%clk 0:00:18]} 45. Kc3 {[%clk 0:00:14]}  Rf1 {[%clk 0:00:18]} 46. Kd4 {[%clk 0:00:13]}  Rf2 {[%clk 0:00:17]} 47. c5+ {[%clk 0:00:13]}  bxc5+ {[%clk 0:00:17]} 48. bxc5+ {[%clk 0:00:13]}  Ke7 {[%clk 0:00:18]} 49. c6 {[%clk 0:00:12]}  Kd6 {[%clk 0:00:15]} 50. Rc3 {[%clk 0:00:13]}  e5+ {[%clk 0:00:10]} 51. fxe5+ {[%clk 0:00:12]}  Kc7 {[%clk 0:00:11]} 52. Kd5 {[%clk 0:00:12]}  Rf5 {[%clk 0:00:10]} 53. Ke6 {[%clk 0:00:12]}  Rxg5 {[%clk 0:00:10]} 54. Rc5 {[%clk 0:00:09]}  Rxg3 {[%clk 0:00:11]} 55. Kf6 {[%clk 0:00:08]}  Rxa3 {[%clk 0:00:05]} 56. e6 {[%clk 0:00:08]}  Rf3+ {[%clk 0:00:02]} 57. Kxg6 {[%clk 0:00:08]}  a5 {[%clk 0:00:02]} 58. e7 {[%clk 0:00:08]}  Re3 {[%clk 0:00:02]} 59. Kf6 {[%clk 0:00:08]}  a4 {[%clk 0:00:02]} 60. Re5 {[%clk 0:00:07]}  Rf3+ {[%clk 0:00:02]} 61. Ke6 {[%clk 0:00:07]}  a3 {[%clk 0:00:01]} 62. e8=Q {[%clk 0:00:07]}  a2 {[%clk 0:00:02]} 63. Qd7+ {[%clk 0:00:07]}  Kb6 {[%clk 0:00:03]} 64. Qb7# {[%clk 0:00:08]} 1-0


[Site "https://www.chess.com"]

[Event "Titled Tuesday Blitz October 31 Late 2023"]
[White "Grigoriants, Sergey"]
[Black "Bortnyk, Mykola"]
[WhiteFideId "4130804"]
[BlackFideId "14120836"]
[WhiteElo "2897"]
[BlackElo "3002"]
[Result "1-0"]
[Round "7"]
[TimeControl "180+1"]
[Date "2023.10.31"]
[WhiteClock "0:00:04"]
[BlackClock "0:00:00"]
[Board "8"]

1. d4 {[%clk 0:02:51]}  f5 {[%clk 0:02:58]} 2. Bg5 {[%clk 0:02:49]}  h6 {[%clk 0:02:58]} 3. Bh4 {[%clk 0:02:48]}  g5 {[%clk 0:02:58]} 4. e3 {[%clk 0:02:48]}  Nf6 {[%clk 0:02:58]} 5. Bg3 {[%clk 0:02:46]}  Bg7 {[%clk 0:02:55]} 6. Nc3 {[%clk 0:02:45]}  d6 {[%clk 0:02:48]} 7. h4 {[%clk 0:02:45]}  g4 {[%clk 0:02:32]} 8. Bc4 {[%clk 0:02:44]}  d5 {[%clk 0:02:29]} 9. Bb3 {[%clk 0:02:37]}  c6 {[%clk 0:02:29]} 10. Nge2 {[%clk 0:02:34]}  Nh5 {[%clk 0:02:29]} 11. Bh2 {[%clk 0:02:14]}  Be6 {[%clk 0:02:26]} 12. Nf4 {[%clk 0:02:12]}  Nxf4 {[%clk 0:02:14]} 13. Bxf4 {[%clk 0:02:13]}  Nd7 {[%clk 0:02:06]} 14. Qd3 {[%clk 0:02:10]}  Qa5 {[%clk 0:02:03]} 15. O-O-O {[%clk 0:02:06]}  Nf6 {[%clk 0:01:45]} 16. f3 {[%clk 0:02:02]}  b5 {[%clk 0:01:39]} 17. Be5 {[%clk 0:02:00]}  Rg8 {[%clk 0:01:31]} 18. Kb1 {[%clk 0:01:47]}  Qb6 {[%clk 0:01:28]} 19. e4 {[%clk 0:01:42]}  a5 {[%clk 0:01:17]} 20. Bxf6 {[%clk 0:01:28]}  Bxf6 {[%clk 0:01:12]} 21. exd5 {[%clk 0:01:28]}  a4 {[%clk 0:00:31]} 22. dxe6 {[%clk 0:01:27]}  axb3 {[%clk 0:00:31]} 23. cxb3 {[%clk 0:01:28]}  b4 {[%clk 0:00:28]} 24. Na4 {[%clk 0:01:25]}  Qb5 {[%clk 0:00:25]} 25. Qxb5 {[%clk 0:01:10]}  cxb5 {[%clk 0:00:26]} 26. Nb6 {[%clk 0:01:10]}  Rd8 {[%clk 0:00:23]} 27. Nd7 {[%clk 0:01:06]}  h5 {[%clk 0:00:20]} 28. f4 {[%clk 0:00:54]}  g3 {[%clk 0:00:19]} 29. Nxf6+ {[%clk 0:00:49]}  exf6 {[%clk 0:00:19]} 30. d5 {[%clk 0:00:50]}  Ke7 {[%clk 0:00:18]} 31. Rd4 {[%clk 0:00:48]}  Rg4 {[%clk 0:00:16]} 32. Kc2 {[%clk 0:00:30]}  Kd6 {[%clk 0:00:15]} 33. Kd2 {[%clk 0:00:25]}  Ra8 {[%clk 0:00:14]} 34. Rc1 {[%clk 0:00:20]}  Rgg8 {[%clk 0:00:03]} 35. Rc6+ {[%clk 0:00:18]}  Ke7 {[%clk 0:00:04]} 36. Rc7+ {[%clk 0:00:18]}  Kd6 {[%clk 0:00:04]} 37. Rc6+ {[%clk 0:00:10]}  Ke7 {[%clk 0:00:05]} 38. Rxb4 {[%clk 0:00:09]}  Rgd8 {[%clk 0:00:04]} 39. Rxb5 {[%clk 0:00:09]}  Rxa2 {[%clk 0:00:05]} 40. Kc3 {[%clk 0:00:08]}  Ra1 {[%clk 0:00:06]} 41. Rb7+ {[%clk 0:00:08]}  Ke8 {[%clk 0:00:06]} 42. Rg7 {[%clk 0:00:07]}  Rc1+ {[%clk 0:00:04]} 43. Kd2 {[%clk 0:00:04]}  Rxc6 {[%clk 0:00:03]} 44. Rg8+ {[%clk 0:00:04]}  Ke7 {[%clk 0:00:04]} 45. Rxd8 {[%clk 0:00:05]}  Rc5 {[%clk 0:00:02]} 46. Rd7+ {[%clk 0:00:05]}  Ke8 {[%clk 0:00:03]} 47. Kd3 {[%clk 0:00:05]}  Rb5 {[%clk 0:00:03]} 48. Kc4 {[%clk 0:00:05]}  Rb8 {[%clk 0:00:04]} 49. Rg7 {[%clk 0:00:05]}  Rc8+ {[%clk 0:00:04]} 50. Kd3 {[%clk 0:00:05]}  Rc1 {[%clk 0:00:03]} 51. Rxg3 {[%clk 0:00:04]}  Rd1+ {[%clk 0:00:02]} 52. Kc4 {[%clk 0:00:04]}  Rf1 {[%clk 0:00:03]} 53. Kc5 {[%clk 0:00:04]}  Ke7 {[%clk 0:00:02]} 54. Rg7+ {[%clk 0:00:04]}  Kf8 {[%clk 0:00:03]} 55. Rb7 {[%clk 0:00:04]}  Ke8 {[%clk 0:00:03]} 56. d6 {[%clk 0:00:04]}  Rc1+ {[%clk 0:00:00]} 57. Kb4 {[%clk 0:00:04]} 1-0


[Site "https://www.chess.com"]

[Event "Titled Tuesday Blitz October 31 Late 2023"]
[White "Pakleza, Zbigniew"]
[Black "Chigaev, Maksim"]
[WhiteFideId "1119290"]
[BlackFideId "4108116"]
[WhiteElo "2836"]
[BlackElo "2947"]
[Result "1-0"]
[Round "7"]
[TimeControl "180+1"]
[Date "2023.10.31"]
[WhiteClock "0:00:05"]
[BlackClock "0:00:01"]
[Board "10"]

1. d4 {[%clk 0:03:00]}  Nf6 {[%clk 0:02:59]} 2. Nf3 {[%clk 0:03:01]}  g6 {[%clk 0:02:58]} 3. Bf4 {[%clk 0:03:01]}  Bg7 {[%clk 0:02:57]} 4. e3 {[%clk 0:03:02]}  d6 {[%clk 0:02:57]} 5. h3 {[%clk 0:03:02]}  O-O {[%clk 0:02:57]} 6. Be2 {[%clk 0:03:03]}  c5 {[%clk 0:02:56]} 7. c3 {[%clk 0:03:03]}  Qb6 {[%clk 0:02:56]} 8. Qb3 {[%clk 0:03:03]}  Be6 {[%clk 0:02:57]} 9. Qxb6 {[%clk 0:03:04]}  axb6 {[%clk 0:02:58]} 10. a3 {[%clk 0:03:04]}  Bd5 {[%clk 0:02:58]} 11. Nbd2 {[%clk 0:03:05]}  Bc6 {[%clk 0:02:58]} 12. O-O {[%clk 0:03:05]}  Nbd7 {[%clk 0:02:58]} 13. Bd3 {[%clk 0:03:00]}  Rfd8 {[%clk 0:02:56]} 14. Bg3 {[%clk 0:02:55]}  e5 {[%clk 0:02:52]} 15. Bc2 {[%clk 0:02:40]}  e4 {[%clk 0:02:47]} 16. Ne1 {[%clk 0:02:30]}  d5 {[%clk 0:02:45]} 17. Bb3 {[%clk 0:02:11]}  Bb5 {[%clk 0:02:18]} 18. c4 {[%clk 0:02:00]}  Ba6 {[%clk 0:02:18]} 19. Nc2 {[%clk 0:01:51]}  Rac8 {[%clk 0:02:02]} 20. Rfc1 {[%clk 0:01:34]}  dxc4 {[%clk 0:01:16]} 21. Bxc4 {[%clk 0:01:26]}  cxd4 {[%clk 0:00:58]} 22. Nxd4 {[%clk 0:01:23]}  Nc5 {[%clk 0:00:58]} 23. b4 {[%clk 0:01:11]}  Nd3 {[%clk 0:00:52]} 24. Bxd3 {[%clk 0:01:10]}  Bxd3 {[%clk 0:00:52]} 25. Bc7 {[%clk 0:01:05]}  Re8 {[%clk 0:00:51]} 26. Bxb6 {[%clk 0:00:51]}  Nd5 {[%clk 0:00:51]} 27. Bc5 {[%clk 0:00:52]}  b6 {[%clk 0:00:46]} 28. Bd6 {[%clk 0:00:52]}  Nc3 {[%clk 0:00:41]} 29. Kh2 {[%clk 0:00:48]}  Ne2 {[%clk 0:00:35]} 30. Rxc8 {[%clk 0:00:38]}  Rxc8 {[%clk 0:00:35]} 31. N2b3 {[%clk 0:00:32]}  Rc3 {[%clk 0:00:16]} 32. Ra2 {[%clk 0:00:32]}  Nxd4 {[%clk 0:00:10]} 33. Nxd4 {[%clk 0:00:33]}  Bc4 {[%clk 0:00:05]} 34. Ra1 {[%clk 0:00:25]}  Rd3 {[%clk 0:00:05]} 35. a4 {[%clk 0:00:20]}  Bxd4 {[%clk 0:00:04]} 36. exd4 {[%clk 0:00:21]}  Rxd4 {[%clk 0:00:04]} 37. Bc7 {[%clk 0:00:20]}  b5 {[%clk 0:00:05]} 38. a5 {[%clk 0:00:18]}  Bd5 {[%clk 0:00:04]} 39. Be5 {[%clk 0:00:15]}  Rxb4 {[%clk 0:00:03]} 40. Rd1 {[%clk 0:00:15]}  f6 {[%clk 0:00:03]} 41. Bd6 {[%clk 0:00:10]}  Rb2 {[%clk 0:00:03]} 42. Rxd5 {[%clk 0:00:10]}  Rxf2 {[%clk 0:00:04]} 43. Rxb5 {[%clk 0:00:08]}  e3 {[%clk 0:00:04]} 44. Bc5 {[%clk 0:00:06]}  Re2 {[%clk 0:00:02]} 45. a6 {[%clk 0:00:05]}  Ra2 {[%clk 0:00:03]} 46. a7 {[%clk 0:00:05]}  e2 {[%clk 0:00:03]} 47. Rb1 {[%clk 0:00:05]}  Kf7 {[%clk 0:00:03]} 48. Re1 {[%clk 0:00:05]}  Ke6 {[%clk 0:00:01]} 49. Rxe2+ {[%clk 0:00:05]} 1-0


[Site "https://www.chess.com"]

[Event "Titled Tuesday Blitz October 31 Late 2023"]
[White "Ilamparthi A R"]
[Black "Javakhadze, Zurab"]
[WhiteFideId "45015775"]
[BlackFideId "13603647"]
[WhiteElo "2930"]
[BlackElo "2785"]
[Result "1-0"]
[Round "7"]
[TimeControl "180+1"]
[Date "2023.10.31"]
[WhiteClock "0:00:31"]
[BlackClock "0:00:00"]
[Board "14"]

1. d4 {[%clk 0:02:56]}  d5 {[%clk 0:02:59]} 2. Bf4 {[%clk 0:02:55]}  c5 {[%clk 0:02:53]} 3. e3 {[%clk 0:02:55]}  cxd4 {[%clk 0:02:52]} 4. exd4 {[%clk 0:02:55]}  Nc6 {[%clk 0:02:52]} 5. Nf3 {[%clk 0:02:54]}  Bg4 {[%clk 0:02:49]} 6. c3 {[%clk 0:02:54]}  e6 {[%clk 0:02:49]} 7. Nbd2 {[%clk 0:02:52]}  Bd6 {[%clk 0:02:48]} 8. Bxd6 {[%clk 0:02:50]}  Qxd6 {[%clk 0:02:49]} 9. h3 {[%clk 0:02:50]}  Bh5 {[%clk 0:02:48]} 10. Bd3 {[%clk 0:02:49]}  Nf6 {[%clk 0:02:33]} 11. O-O {[%clk 0:02:49]}  O-O {[%clk 0:02:33]} 12. Re1 {[%clk 0:02:49]}  Rab8 {[%clk 0:02:33]} 13. a4 {[%clk 0:02:48]}  a6 {[%clk 0:02:33]} 14. a5 {[%clk 0:02:46]}  Qc7 {[%clk 0:02:25]} 15. Qa4 {[%clk 0:02:45]}  Nd7 {[%clk 0:02:22]} 16. Qa3 {[%clk 0:02:31]}  Rfe8 {[%clk 0:02:21]} 17. Re3 {[%clk 0:02:23]}  f6 {[%clk 0:02:14]} 18. Rae1 {[%clk 0:02:17]}  Bf7 {[%clk 0:02:14]} 19. b4 {[%clk 0:02:15]}  h6 {[%clk 0:02:11]} 20. Bb1 {[%clk 0:02:11]}  e5 {[%clk 0:02:07]} 21. dxe5 {[%clk 0:02:10]}  fxe5 {[%clk 0:02:08]} 22. Qb2 {[%clk 0:02:06]}  e4 {[%clk 0:01:59]} 23. Nh2 {[%clk 0:01:59]}  Nde5 {[%clk 0:01:52]} 24. Qc2 {[%clk 0:01:56]}  Rbc8 {[%clk 0:01:45]} 25. Qd1 {[%clk 0:01:47]}  Ne7 {[%clk 0:01:39]} 26. Ng4 {[%clk 0:01:28]}  Nf5 {[%clk 0:01:37]} 27. Nb3 {[%clk 0:01:23]}  Nxe3 {[%clk 0:01:21]} 28. Rxe3 {[%clk 0:01:20]}  Nc4 {[%clk 0:01:04]} 29. Rg3 {[%clk 0:01:17]}  Qf4 {[%clk 0:01:04]} 30. Qd4 {[%clk 0:01:07]}  Ne5 {[%clk 0:00:46]} 31. Ne3 {[%clk 0:01:05]}  Kh8 {[%clk 0:00:35]} 32. Nc5 {[%clk 0:01:04]}  Qf6 {[%clk 0:00:33]} 33. Nxd5 {[%clk 0:00:57]}  Bxd5 {[%clk 0:00:30]} 34. Qxd5 {[%clk 0:00:58]}  Rcd8 {[%clk 0:00:24]} 35. Qxe4 {[%clk 0:00:58]}  Rd1+ {[%clk 0:00:22]} 36. Kh2 {[%clk 0:00:58]}  Ng4+ {[%clk 0:00:22]} 37. Qxg4 {[%clk 0:00:53]}  Rxb1 {[%clk 0:00:22]} 38. Ne4 {[%clk 0:00:50]}  Qe5 {[%clk 0:00:17]} 39. f4 {[%clk 0:00:43]}  Qc7 {[%clk 0:00:17]} 40. Qg6 {[%clk 0:00:33]}  Rd8 {[%clk 0:00:08]} 41. Nf6 {[%clk 0:00:30]}  gxf6 {[%clk 0:00:04]} 42. Qxh6+ {[%clk 0:00:30]}  Qh7 {[%clk 0:00:00]} 43. Qxf6+ {[%clk 0:00:31]} 1-0


[Site "https://www.chess.com"]

[Event "Titled Tuesday Blitz October 31 Late 2023"]
[White "Alexandre, Anne Shopie Elizabeth"]
[Black "Schnaider, Ilan"]
[WhiteFideId "11902418"]
[BlackFideId "169013"]
[WhiteElo "2846"]
[BlackElo "2740"]
[Result "1/2-1/2"]
[Round "7"]
[TimeControl "180+1"]
[Date "2023.10.31"]
[WhiteClock "0:01:48"]
[BlackClock "0:00:27"]
[Board "18"]

1. e4 {[%clk 0:03:00]}  c5 {[%clk 0:02:59]} 2. Nf3 {[%clk 0:03:01]}  d6 {[%clk 0:02:59]} 3. Bb5+ {[%clk 0:03:01]}  Bd7 {[%clk 0:02:59]} 4. c4 {[%clk 0:02:59]}  Nf6 {[%clk 0:02:58]} 5. Nc3 {[%clk 0:02:59]}  e5 {[%clk 0:02:58]} 6. Bxd7+ {[%clk 0:02:57]}  Qxd7 {[%clk 0:02:58]} 7. d3 {[%clk 0:02:56]}  Be7 {[%clk 0:02:58]} 8. O-O {[%clk 0:02:56]}  Nc6 {[%clk 0:02:57]} 9. a3 {[%clk 0:02:53]}  Bd8 {[%clk 0:02:53]} 10. Rb1 {[%clk 0:02:52]}  a5 {[%clk 0:02:53]} 11. b3 {[%clk 0:02:50]}  Ng8 {[%clk 0:02:43]} 12. Bd2 {[%clk 0:02:39]}  Nge7 {[%clk 0:02:40]} 13. Ne2 {[%clk 0:02:39]}  Ng6 {[%clk 0:02:37]} 14. b4 {[%clk 0:02:37]}  axb4 {[%clk 0:02:37]} 15. axb4 {[%clk 0:02:38]}  O-O {[%clk 0:02:35]} 16. bxc5 {[%clk 0:02:30]}  dxc5 {[%clk 0:02:35]} 17. Be3 {[%clk 0:02:31]}  Nd4 {[%clk 0:02:01]} 18. Nc3 {[%clk 0:02:29]}  Nxf3+ {[%clk 0:01:35]} 19. Qxf3 {[%clk 0:02:28]}  Qxd3 {[%clk 0:01:33]} 20. Bxc5 {[%clk 0:02:28]}  Qxf3 {[%clk 0:01:33]} 21. gxf3 {[%clk 0:02:29]}  Re8 {[%clk 0:01:32]} 22. Rxb7 {[%clk 0:02:24]}  Rc8 {[%clk 0:01:32]} 23. Be3 {[%clk 0:02:24]}  Rxc4 {[%clk 0:01:27]} 24. Nb5 {[%clk 0:02:22]}  Rf8 {[%clk 0:01:01]} 25. Nd6 {[%clk 0:02:16]}  Rc7 {[%clk 0:00:58]} 26. Rb8 {[%clk 0:02:04]}  Be7 {[%clk 0:00:53]} 27. Rxf8+ {[%clk 0:02:04]}  Bxf8 {[%clk 0:00:54]} 28. Nf5 {[%clk 0:02:04]}  Ne7 {[%clk 0:00:46]} 29. Nxe7+ {[%clk 0:02:00]}  Bxe7 {[%clk 0:00:47]} 30. Rb1 {[%clk 0:02:00]}  f6 {[%clk 0:00:46]} 31. Kg2 {[%clk 0:01:56]}  Kf7 {[%clk 0:00:45]} 32. f4 {[%clk 0:01:53]}  Bd6 {[%clk 0:00:34]} 33. fxe5 {[%clk 0:01:52]}  Bxe5 {[%clk 0:00:31]} 34. h3 {[%clk 0:01:52]}  g5 {[%clk 0:00:30]} 35. Kf3 {[%clk 0:01:51]}  Kg6 {[%clk 0:00:30]} 36. Rd1 {[%clk 0:01:51]}  h5 {[%clk 0:00:28]} 37. Kg2 {[%clk 0:01:51]}  Rc2 {[%clk 0:00:27]} 38. Kf3 {[%clk 0:01:48]}  Rc7 {[%clk 0:00:26]} 39. Kg2 {[%clk 0:01:48]}  Rc2 {[%clk 0:00:26]} 40. Kf3 {[%clk 0:01:48]}  Rc7 {[%clk 0:00:27]} 1/2-1/2


[Site "https://www.chess.com"]

[Event "Titled Tuesday Blitz October 31 Late 2023"]
[White "Zakhartsov, Vladimir"]
[Black "maksimys18"]
[WhiteFideId "4145097"]
[WhiteElo "2828"]
[BlackElo "2539"]
[Result "1-0"]
[Round "7"]
[TimeControl "180+1"]
[Date "2023.10.31"]
[WhiteClock "0:00:48"]
[BlackClock "0:00:05"]
[Board "19"]

1. d4 {[%clk 0:02:55]}  e6 {[%clk 0:03:00]} 2. e4 {[%clk 0:02:55]}  d5 {[%clk 0:03:00]} 3. Nd2 {[%clk 0:02:55]}  Nf6 {[%clk 0:03:00]} 4. Bd3 {[%clk 0:02:55]}  c5 {[%clk 0:03:00]} 5. e5 {[%clk 0:02:51]}  Nfd7 {[%clk 0:02:59]} 6. c3 {[%clk 0:02:52]}  Nc6 {[%clk 0:02:59]} 7. Ne2 {[%clk 0:02:52]}  cxd4 {[%clk 0:02:59]} 8. cxd4 {[%clk 0:02:53]}  f6 {[%clk 0:02:59]} 9. exf6 {[%clk 0:02:53]}  Nxf6 {[%clk 0:03:00]} 10. Nf3 {[%clk 0:02:51]}  Bd6 {[%clk 0:02:58]} 11. O-O {[%clk 0:02:50]}  Qc7 {[%clk 0:02:58]} 12. Bg5 {[%clk 0:02:50]}  O-O {[%clk 0:02:58]} 13. Qc2 {[%clk 0:02:50]}  h6 {[%clk 0:02:53]} 14. Bh4 {[%clk 0:02:50]}  Nb4 {[%clk 0:02:48]} 15. Qxc7 {[%clk 0:02:47]}  Bxc7 {[%clk 0:02:48]} 16. Bg6 {[%clk 0:02:45]}  Bd7 {[%clk 0:02:42]} 17. Nc3 {[%clk 0:02:27]}  Be8 {[%clk 0:02:39]} 18. Bxe8 {[%clk 0:02:23]}  Raxe8 {[%clk 0:02:39]} 19. Bg3 {[%clk 0:02:22]}  Bxg3 {[%clk 0:02:27]} 20. hxg3 {[%clk 0:02:23]}  Nd7 {[%clk 0:02:26]} 21. Rad1 {[%clk 0:02:20]}  Nc6 {[%clk 0:02:11]} 22. Rfe1 {[%clk 0:02:19]}  Re7 {[%clk 0:02:09]} 23. Re3 {[%clk 0:02:16]}  Rfe8 {[%clk 0:02:09]} 24. Rde1 {[%clk 0:02:16]}  Kf7 {[%clk 0:02:04]} 25. Nb5 {[%clk 0:02:14]}  Kf6 {[%clk 0:01:46]} 26. Nc7 {[%clk 0:02:13]}  g5 {[%clk 0:01:34]} 27. Nxe8+ {[%clk 0:02:11]}  Rxe8 {[%clk 0:01:34]} 28. g4 {[%clk 0:02:10]}  Nb6 {[%clk 0:01:32]} 29. b3 {[%clk 0:02:03]}  Nc8 {[%clk 0:01:32]} 30. Rd3 {[%clk 0:01:56]}  Nd6 {[%clk 0:01:27]} 31. Ne5 {[%clk 0:01:56]}  Ne4 {[%clk 0:01:09]} 32. Rf3+ {[%clk 0:01:42]}  Kg7 {[%clk 0:00:58]} 33. Rf7+ {[%clk 0:01:42]}  Kg8 {[%clk 0:00:58]} 34. Rxb7 {[%clk 0:01:39]}  Nxd4 {[%clk 0:00:56]} 35. f3 {[%clk 0:01:29]}  Nc3 {[%clk 0:00:50]} 36. Rxa7 {[%clk 0:01:25]}  Rd8 {[%clk 0:00:45]} 37. Kf2 {[%clk 0:01:22]}  Ndb5 {[%clk 0:00:39]} 38. Rd7 {[%clk 0:01:22]}  Ra8 {[%clk 0:00:35]} 39. a4 {[%clk 0:01:22]}  Nd4 {[%clk 0:00:35]} 40. Rh1 {[%clk 0:01:18]}  Nxb3 {[%clk 0:00:13]} 41. Rxh6 {[%clk 0:01:15]}  Rf8 {[%clk 0:00:08]} 42. Rg6+ {[%clk 0:00:58]}  Kh8 {[%clk 0:00:08]} 43. Rgg7 {[%clk 0:00:55]}  Rf6 {[%clk 0:00:05]} 44. Rh7+ {[%clk 0:00:46]}  Kg8 {[%clk 0:00:05]} 45. Rdg7+ {[%clk 0:00:47]}  Kf8 {[%clk 0:00:05]} 46. Nd7+ {[%clk 0:00:47]}  Ke8 {[%clk 0:00:05]} 47. Rg8+ {[%clk 0:00:47]}  Rf8 {[%clk 0:00:05]} 48. Rxf8# {[%clk 0:00:48]} 1-0


[Site "https://www.chess.com"]